[Event "Titled Tuesday Blitz April 4 Early 2023"]
[White "Samunenkov, Ihor"]
[Black "Drori, Saar"]
[WhiteFideId "14187086"]
[BlackFideId "2812444"]
[WhiteElo "2457"]
[BlackElo "2322"]
[Result "1-0"]
[Round "11"]
[TimeControl "180+2"]
[Date "2023.04.04"]
[WhiteClock "0:00:07"]
[BlackClock "0:00:06"]

1. e4 {[%clk 0:03:00]}  c5 {[%clk 0:03:00]} 2. Nf3 {[%clk 0:02:58]}  d6 {[%clk 0:03:01]} 3. d4 {[%clk 0:02:58]}  cxd4 {[%clk 0:03:01]} 4. Nxd4 {[%clk 0:02:58]}  Nf6 {[%clk 0:03:02]} 5. Nc3 {[%clk 0:02:59]}  a6 {[%clk 0:03:03]} 6. h3 {[%clk 0:02:59]}  e6 {[%clk 0:03:02]} 7. g4 {[%clk 0:02:59]}  Nfd7 {[%clk 0:03:02]} 8. g5 {[%clk 0:02:55]}  b5 {[%clk 0:03:03]} 9. a3 {[%clk 0:02:54]}  Bb7 {[%clk 0:03:03]} 10. h4 {[%clk 0:02:54]}  Nc5 {[%clk 0:03:02]} 11. Bg2 {[%clk 0:02:51]}  Nbd7 {[%clk 0:03:03]} 12. O-O {[%clk 0:02:18]}  Nb6 {[%clk 0:02:58]} 13. f4 {[%clk 0:02:17]}  h6 {[%clk 0:02:52]} 14. f5 {[%clk 0:02:01]}  hxg5 {[%clk 0:02:50]} 15. hxg5 {[%clk 0:01:55]}  e5 {[%clk 0:02:31]} 16. Nb3 {[%clk 0:01:50]}  Nca4 {[%clk 0:02:16]} 17. Nxa4 {[%clk 0:01:21]}  Nxa4 {[%clk 0:02:00]} 18. Qe1 {[%clk 0:01:17]}  Qb6+ {[%clk 0:01:45]} 19. Be3 {[%clk 0:01:15]}  Qc7 {[%clk 0:01:45]} 20. Qc1 {[%clk 0:01:00]}  d5 {[%clk 0:00:50]} 21. exd5 {[%clk 0:00:56]}  Bd6 {[%clk 0:00:46]} 22. Nd2 {[%clk 0:00:27]}  Bc5 {[%clk 0:00:23]} 23. Ne4 {[%clk 0:00:20]}  Bxe3+ {[%clk 0:00:23]} 24. Qxe3 {[%clk 0:00:21]}  Bxd5 {[%clk 0:00:23]} 25. Rad1 {[%clk 0:00:18]}  Bxe4 {[%clk 0:00:23]} 26. Bxe4 {[%clk 0:00:16]}  Rc8 {[%clk 0:00:21]} 27. g6 {[%clk 0:00:12]}  f6 {[%clk 0:00:17]} 28. Bd5 {[%clk 0:00:10]}  Qxc2 {[%clk 0:00:14]} 29. Bf7+ {[%clk 0:00:06]}  Ke7 {[%clk 0:00:14]} 30. Rd2 {[%clk 0:00:05]}  Qc5 {[%clk 0:00:13]} 31. Qxc5+ {[%clk 0:00:05]}  Nxc5 {[%clk 0:00:13]} 32. Kg2 {[%clk 0:00:04]}  Rhd8 {[%clk 0:00:13]} 33. Rc2 {[%clk 0:00:04]}  Nd3 {[%clk 0:00:12]} 34. Rxc8 {[%clk 0:00:03]}  Rxc8 {[%clk 0:00:13]} 35. Rh1 {[%clk 0:00:03]}  Nf4+ {[%clk 0:00:11]} 36. Kf3 {[%clk 0:00:03]}  Rc2 {[%clk 0:00:08]} 37. Rh7 {[%clk 0:00:03]}  Rxb2 {[%clk 0:00:07]} 38. Rxg7 {[%clk 0:00:04]}  Rh2 {[%clk 0:00:04]} 39. Bb3+ {[%clk 0:00:01]}  Kf8 {[%clk 0:00:02]} 40. Rf7+ {[%clk 0:00:01]}  Ke8 {[%clk 0:00:02]} 41. g7 {[%clk 0:00:02]}  Rg2 {[%clk 0:00:02]} 42. Rf8+ {[%clk 0:00:02]}  Ke7 {[%clk 0:00:02]} 43. g8=Q {[%clk 0:00:03]}  Rxg8 {[%clk 0:00:01]} 44. Rxg8 {[%clk 0:00:04]}  Nd3 {[%clk 0:00:01]} 45. Rg7+ {[%clk 0:00:04]}  Kd6 {[%clk 0:00:02]} 46. Ke3 {[%clk 0:00:04]}  Nc5 {[%clk 0:00:02]} 47. Ba2 {[%clk 0:00:05]}  Na4 {[%clk 0:00:03]} 48. Rf7 {[%clk 0:00:05]}  Nc3 {[%clk 0:00:03]} 49. Rxf6+ {[%clk 0:00:06]}  Kc5 {[%clk 0:00:04]} 50. Bg8 {[%clk 0:00:05]}  a5 {[%clk 0:00:05]} 51. Re6 {[%clk 0:00:05]}  b4 {[%clk 0:00:05]} 52. axb4+ {[%clk 0:00:05]}  axb4 {[%clk 0:00:06]} 53. Rxe5+ {[%clk 0:00:06]}  Kd6 {[%clk 0:00:06]} 54. Re6+ {[%clk 0:00:06]}  Kd7 {[%clk 0:00:06]} 55. Rb6 {[%clk 0:00:05]}  Nd1+ {[%clk 0:00:03]} 56. Kd2 {[%clk 0:00:05]}  Nf2 {[%clk 0:00:03]} 57. Rxb4 {[%clk 0:00:05]}  Ke7 {[%clk 0:00:03]} 58. Ke3 {[%clk 0:00:04]}  Nd1+ {[%clk 0:00:02]} 59. Kd2 {[%clk 0:00:04]}  Nf2 {[%clk 0:00:03]} 60. Rb7+ {[%clk 0:00:05]}  Kf6 {[%clk 0:00:03]} 61. Be6 {[%clk 0:00:05]}  Ke5 {[%clk 0:00:04]} 62. Rb5+ {[%clk 0:00:05]}  Kf6 {[%clk 0:00:04]} 63. Ke3 {[%clk 0:00:05]}  Ng4+ {[%clk 0:00:04]} 64. Kf4 {[%clk 0:00:06]}  Nf2 {[%clk 0:00:05]} 65. Rb6 {[%clk 0:00:05]}  Nd3+ {[%clk 0:00:06]} 66. Ke3 {[%clk 0:00:05]}  Nc5 {[%clk 0:00:06]} 67. Bc4+ {[%clk 0:00:06]}  Kxf5 {[%clk 0:00:06]} 68. Rb5 {[%clk 0:00:06]}  Kg6 {[%clk 0:00:06]} 69. Rxc5 {[%clk 0:00:07]} 1-0


[Site "https://www.chess.com"]

[Event "Titled Tuesday Blitz April 4 Early 2023"]
[White "Yanchenko, Roman"]
[Black "Ljukin, Sergei"]
[WhiteFideId "4137329"]
[BlackFideId "14102200"]
[WhiteElo "2491"]
[BlackElo "2312"]
[Result "0-1"]
[Round "11"]
[TimeControl "180+2"]
[Date "2023.04.04"]
[WhiteClock "0:00:11"]
[BlackClock "0:00:04"]

1. d4 {[%clk 0:03:00]}  d5 {[%clk 0:02:59]} 2. c4 {[%clk 0:03:01]}  c6 {[%clk 0:02:59]} 3. Nc3 {[%clk 0:03:01]}  Nf6 {[%clk 0:02:59]} 4. Nf3 {[%clk 0:03:01]}  dxc4 {[%clk 0:02:59]} 5. a4 {[%clk 0:03:02]}  Bf5 {[%clk 0:02:59]} 6. Bg5 {[%clk 0:03:02]}  Qa5 {[%clk 0:02:56]} 7. Bxf6 {[%clk 0:03:01]}  exf6 {[%clk 0:02:56]} 8. e3 {[%clk 0:03:02]}  Bb4 {[%clk 0:02:56]} 9. Qd2 {[%clk 0:03:01]}  b5 {[%clk 0:02:56]} 10. Be2 {[%clk 0:03:01]}  O-O {[%clk 0:02:53]} 11. O-O {[%clk 0:03:02]}  Qb6 {[%clk 0:02:53]} 12. axb5 {[%clk 0:02:57]}  Bxc3 {[%clk 0:02:45]} 13. bxc3 {[%clk 0:02:40]}  cxb5 {[%clk 0:02:45]} 14. Nh4 {[%clk 0:02:41]}  Bd7 {[%clk 0:02:35]} 15. Rfb1 {[%clk 0:02:40]}  Qc7 {[%clk 0:02:32]} 16. Bf3 {[%clk 0:02:37]}  Nc6 {[%clk 0:02:15]} 17. Rxb5 {[%clk 0:02:37]}  Nxd4 {[%clk 0:02:15]} 18. Qxd4 {[%clk 0:02:05]}  Bxb5 {[%clk 0:02:14]} 19. Bxa8 {[%clk 0:02:05]}  Rxa8 {[%clk 0:02:14]} 20. Nf5 {[%clk 0:01:48]}  Rd8 {[%clk 0:02:02]} 21. Qg4 {[%clk 0:01:47]}  g6 {[%clk 0:01:57]} 22. Nd4 {[%clk 0:01:47]}  Bc6 {[%clk 0:01:35]} 23. h3 {[%clk 0:01:37]}  Ra8 {[%clk 0:00:58]} 24. Qe2 {[%clk 0:01:17]}  Be4 {[%clk 0:00:54]} 25. Qb2 {[%clk 0:00:58]}  a5 {[%clk 0:00:39]} 26. f3 {[%clk 0:00:58]}  Bd3 {[%clk 0:00:37]} 27. Qb5 {[%clk 0:00:53]}  Qe5 {[%clk 0:00:22]} 28. Qxe5 {[%clk 0:00:48]}  fxe5 {[%clk 0:00:22]} 29. Nc6 {[%clk 0:00:48]}  a4 {[%clk 0:00:20]} 30. Nxe5 {[%clk 0:00:49]}  a3 {[%clk 0:00:20]} 31. Kf2 {[%clk 0:00:48]}  a2 {[%clk 0:00:18]} 32. e4 {[%clk 0:00:47]}  Bb1 {[%clk 0:00:16]} 33. Ke3 {[%clk 0:00:46]}  Rc8 {[%clk 0:00:12]} 34. f4 {[%clk 0:00:40]}  f6 {[%clk 0:00:11]} 35. Nf3 {[%clk 0:00:40]}  Rb8 {[%clk 0:00:10]} 36. Nd2 {[%clk 0:00:40]}  Rb2 {[%clk 0:00:09]} 37. g4 {[%clk 0:00:37]}  Rc2 {[%clk 0:00:08]} 38. Nxb1 {[%clk 0:00:35]}  axb1=Q {[%clk 0:00:08]} 39. Rxb1 {[%clk 0:00:35]}  Rxc3+ {[%clk 0:00:09]} 40. Kd4 {[%clk 0:00:36]}  Rxh3 {[%clk 0:00:09]} 41. Rb8+ {[%clk 0:00:34]}  Kg7 {[%clk 0:00:09]} 42. Rb7+ {[%clk 0:00:31]}  Kh6 {[%clk 0:00:09]} 43. Kxc4 {[%clk 0:00:22]}  Rg3 {[%clk 0:00:09]} 44. Kd5 {[%clk 0:00:20]}  Rxg4 {[%clk 0:00:09]} 45. e5 {[%clk 0:00:21]}  fxe5 {[%clk 0:00:09]} 46. fxe5 {[%clk 0:00:21]}  Rg1 {[%clk 0:00:06]} 47. e6 {[%clk 0:00:21]}  Re1 {[%clk 0:00:06]} 48. Rf7 {[%clk 0:00:18]}  g5 {[%clk 0:00:05]} 49. e7 {[%clk 0:00:18]}  Kg6 {[%clk 0:00:05]} 50. Rf8 {[%clk 0:00:11]}  Rxe7 {[%clk 0:00:04]} 51. Rg8+ {[%clk 0:00:12]}  Kh5 {[%clk 0:00:04]} 52. Rf8 {[%clk 0:00:11]}  h6 {[%clk 0:00:04]} 0-1


[Site "https://www.chess.com"]

[Event "Titled Tuesday Blitz April 4 Early 2023"]
[White "Papasimakopoulos, Alexandros"]
[Black "Manukyan, Artyom"]
[WhiteFideId "4244125"]
[BlackFideId "13305786"]
[WhiteElo "2359"]
[BlackElo "2078"]
[Result "1-0"]
[Round "11"]
[TimeControl "180+2"]
[Date "2023.04.04"]
[WhiteClock "0:00:20"]
[BlackClock "0:00:02"]

1. f4 {[%clk 0:02:46]}  Nf6 {[%clk 0:02:58]} 2. Nf3 {[%clk 0:02:46]}  c5 {[%clk 0:02:54]} 3. g3 {[%clk 0:02:42]}  g6 {[%clk 0:02:54]} 4. Bg2 {[%clk 0:02:43]}  Bg7 {[%clk 0:02:55]} 5. O-O {[%clk 0:02:44]}  O-O {[%clk 0:02:55]} 6. d3 {[%clk 0:02:34]}  d5 {[%clk 0:02:52]} 7. Nc3 {[%clk 0:02:34]}  Nc6 {[%clk 0:02:52]} 8. e4 {[%clk 0:02:34]}  d4 {[%clk 0:02:23]} 9. Ne2 {[%clk 0:02:34]}  Ng4 {[%clk 0:02:19]} 10. c3 {[%clk 0:02:31]}  f5 {[%clk 0:02:14]} 11. e5 {[%clk 0:02:31]}  Be6 {[%clk 0:02:09]} 12. c4 {[%clk 0:02:21]}  Rb8 {[%clk 0:01:55]} 13. Ng5 {[%clk 0:02:20]}  Bd7 {[%clk 0:01:44]} 14. Bd5+ {[%clk 0:02:14]}  Kh8 {[%clk 0:01:44]} 15. h3 {[%clk 0:02:00]}  Nh6 {[%clk 0:01:36]} 16. Bd2 {[%clk 0:01:50]}  Qc8 {[%clk 0:01:31]} 17. e6 {[%clk 0:01:37]}  Be8 {[%clk 0:01:29]} 18. a3 {[%clk 0:01:37]}  b5 {[%clk 0:01:27]} 19. b4 {[%clk 0:01:35]}  bxc4 {[%clk 0:01:25]} 20. Bxc4 {[%clk 0:01:35]}  Nd8 {[%clk 0:00:56]} 21. bxc5 {[%clk 0:01:30]}  Qxc5 {[%clk 0:00:54]} 22. Bb4 {[%clk 0:01:30]}  Qc7 {[%clk 0:00:54]} 23. Rc1 {[%clk 0:01:30]}  Bc6 {[%clk 0:00:47]} 24. Qc2 {[%clk 0:01:21]}  Ba8 {[%clk 0:00:44]} 25. Kh2 {[%clk 0:01:09]}  a5 {[%clk 0:00:40]} 26. Bd2 {[%clk 0:01:07]}  Bf6 {[%clk 0:00:27]} 27. Nf3 {[%clk 0:01:01]}  Rc8 {[%clk 0:00:17]} 28. Qa4 {[%clk 0:00:58]}  Qb7 {[%clk 0:00:08]} 29. Rb1 {[%clk 0:00:50]}  Qc6 {[%clk 0:00:05]} 30. Qxc6 {[%clk 0:00:46]}  Nxc6 {[%clk 0:00:05]} 31. Rb6 {[%clk 0:00:47]}  Ng8 {[%clk 0:00:02]} 32. Rc1 {[%clk 0:00:45]}  Rfd8 {[%clk 0:00:02]} 33. Bb5 {[%clk 0:00:40]}  Na7 {[%clk 0:00:01]} 34. Rxc8 {[%clk 0:00:35]}  Nxc8 {[%clk 0:00:02]} 35. Rb8 {[%clk 0:00:25]}  Bxf3 {[%clk 0:00:02]} 36. Bxa5 {[%clk 0:00:25]}  Re8 {[%clk 0:00:01]} 37. Bxe8 {[%clk 0:00:25]}  Bxe2 {[%clk 0:00:01]} 38. Rxc8 {[%clk 0:00:23]}  Kg7 {[%clk 0:00:02]} 39. Bb5 {[%clk 0:00:20]}  Bf3 {[%clk 0:00:02]} 40. Bc6 {[%clk 0:00:19]}  Be2 {[%clk 0:00:02]} 41. Bb5 {[%clk 0:00:19]}  Bf3 {[%clk 0:00:02]} 42. a4 {[%clk 0:00:20]}  g5 {[%clk 0:00:01]} 43. Bb6 {[%clk 0:00:20]}  g4 {[%clk 0:00:01]} 44. h4 {[%clk 0:00:20]}  h5 {[%clk 0:00:01]} 45. a5 {[%clk 0:00:20]}  Nh6 {[%clk 0:00:02]} 46. a6 {[%clk 0:00:20]} 1-0


[Site "https://www.chess.com"]

[Event "Titled Tuesday Blitz April 4 Early 2023"]
[White "a-z30"]
[Black "Csonka, Balazs"]
[BlackFideId "742910"]
[WhiteElo "2472"]
[BlackElo "2404"]
[Result "0-1"]
[Round "11"]
[TimeControl "180+2"]
[Date "2023.04.04"]
[WhiteClock "0:00:01"]
[BlackClock "0:00:02"]

1. d3 {[%clk 0:02:49]}  d5 {[%clk 0:02:55]} 2. Nf3 {[%clk 0:02:50]}  Nf6 {[%clk 0:02:53]} 3. g3 {[%clk 0:02:50]}  Nbd7 {[%clk 0:02:40]} 4. Bg2 {[%clk 0:02:50]}  e5 {[%clk 0:02:40]} 5. O-O {[%clk 0:02:50]}  Bc5 {[%clk 0:02:38]} 6. Nxe5 {[%clk 0:02:49]}  Nxe5 {[%clk 0:02:38]} 7. d4 {[%clk 0:02:48]}  Bd6 {[%clk 0:02:38]} 8. dxe5 {[%clk 0:02:49]}  Bxe5 {[%clk 0:02:39]} 9. c4 {[%clk 0:02:28]}  dxc4 {[%clk 0:02:07]} 10. Qxd8+ {[%clk 0:02:26]}  Kxd8 {[%clk 0:02:07]} 11. Rd1+ {[%clk 0:02:26]}  Ke7 {[%clk 0:01:59]} 12. Na3 {[%clk 0:02:27]}  Be6 {[%clk 0:01:35]} 13. Be3 {[%clk 0:01:18]}  Rhd8 {[%clk 0:00:37]} 14. Bxb7 {[%clk 0:01:11]}  Rxd1+ {[%clk 0:00:30]} 15. Rxd1 {[%clk 0:01:09]}  Rb8 {[%clk 0:00:31]} 16. Ba6 {[%clk 0:00:48]}  c3 {[%clk 0:00:18]} 17. Bc5+ {[%clk 0:00:32]}  Bd6 {[%clk 0:00:18]} 18. Bxd6+ {[%clk 0:00:32]}  cxd6 {[%clk 0:00:19]} 19. bxc3 {[%clk 0:00:32]}  Rb2 {[%clk 0:00:14]} 20. Nb5 {[%clk 0:00:10]}  Rxa2 {[%clk 0:00:08]} 21. Bb7 {[%clk 0:00:10]}  Bc4 {[%clk 0:00:05]} 22. Nxd6 {[%clk 0:00:08]}  Bxe2 {[%clk 0:00:05]} 23. Nf5+ {[%clk 0:00:03]}  Kf8 {[%clk 0:00:03]} 24. Re1 {[%clk 0:00:02]}  g6 {[%clk 0:00:02]} 25. Nd4 {[%clk 0:00:01]}  Bc4 {[%clk 0:00:02]} 0-1


[Site "https://www.chess.com"]

[Event "Titled Tuesday Blitz April 4 Early 2023"]
[White "Weishaeutel, Moritz"]
[Black "Wagner, Dennis"]
[WhiteFideId "12967300"]
[BlackFideId "24650684"]
[WhiteElo "2301"]
[BlackElo "2470"]
[Result "0-1"]
[Round "11"]
[TimeControl "180+2"]
[Date "2023.04.04"]
[WhiteClock "0:00:01"]
[BlackClock "0:00:12"]

1. e4 {[%clk 0:03:00]}  c5 {[%clk 0:03:00]} 2. b4 {[%clk 0:03:01]}  e5 {[%clk 0:02:47]} 3. Nf3 {[%clk 0:03:00]}  Nc6 {[%clk 0:02:32]} 4. b5 {[%clk 0:03:00]}  Nd4 {[%clk 0:02:32]} 5. c3 {[%clk 0:03:01]}  Nxf3+ {[%clk 0:02:31]} 6. Qxf3 {[%clk 0:03:02]}  Nf6 {[%clk 0:02:27]} 7. Bc4 {[%clk 0:03:02]}  Be7 {[%clk 0:02:25]} 8. d3 {[%clk 0:03:02]}  O-O {[%clk 0:02:25]} 9. Nd2 {[%clk 0:02:54]}  d6 {[%clk 0:02:24]} 10. Nf1 {[%clk 0:02:53]}  Qa5 {[%clk 0:01:54]} 11. Bd2 {[%clk 0:02:51]}  Bg4 {[%clk 0:01:51]} 12. Qg3 {[%clk 0:02:50]}  Be6 {[%clk 0:01:49]} 13. Ne3 {[%clk 0:02:45]}  Bxc4 {[%clk 0:01:47]} 14. Nf5 {[%clk 0:02:37]}  Nh5 {[%clk 0:01:37]} 15. Nxe7+ {[%clk 0:02:37]}  Kh8 {[%clk 0:01:37]} 16. Qf3 {[%clk 0:02:36]}  Bxb5 {[%clk 0:01:20]} 17. c4 {[%clk 0:02:28]}  Qd8 {[%clk 0:01:17]} 18. cxb5 {[%clk 0:02:20]}  Qxe7 {[%clk 0:01:16]} 19. Qxh5 {[%clk 0:02:20]}  Qe6 {[%clk 0:01:17]} 20. Qf5 {[%clk 0:02:15]}  Qxf5 {[%clk 0:01:10]} 21. exf5 {[%clk 0:02:15]}  a6 {[%clk 0:01:10]} 22. b6 {[%clk 0:02:10]}  f6 {[%clk 0:01:10]} 23. a4 {[%clk 0:02:09]}  Kg8 {[%clk 0:01:10]} 24. O-O {[%clk 0:02:05]}  Kf7 {[%clk 0:01:10]} 25. f4 {[%clk 0:02:01]}  Ke7 {[%clk 0:01:05]} 26. fxe5 {[%clk 0:02:00]}  fxe5 {[%clk 0:01:06]} 27. Bg5+ {[%clk 0:01:59]}  Kd7 {[%clk 0:01:06]} 28. f6 {[%clk 0:01:59]}  gxf6 {[%clk 0:01:06]} 29. Rxf6 {[%clk 0:01:59]}  Rxf6 {[%clk 0:01:05]} 30. Bxf6 {[%clk 0:02:00]}  Kc6 {[%clk 0:01:04]} 31. a5 {[%clk 0:01:54]}  Rg8 {[%clk 0:01:03]} 32. Rf1 {[%clk 0:01:48]}  Kb5 {[%clk 0:01:02]} 33. Be7 {[%clk 0:01:49]}  Rg6 {[%clk 0:00:49]} 34. Rf7 {[%clk 0:01:48]}  Kxa5 {[%clk 0:00:47]} 35. Bd8 {[%clk 0:01:48]}  Rg8 {[%clk 0:00:43]} 36. Bc7 {[%clk 0:00:54]}  Rg6 {[%clk 0:00:33]} 37. Rxh7 {[%clk 0:00:43]}  Kb5 {[%clk 0:00:32]} 38. h4 {[%clk 0:00:43]}  a5 {[%clk 0:00:32]} 39. h5 {[%clk 0:00:44]}  Re6 {[%clk 0:00:31]} 40. Rh8 {[%clk 0:00:41]}  a4 {[%clk 0:00:31]} 41. h6 {[%clk 0:00:34]}  a3 {[%clk 0:00:29]} 42. h7 {[%clk 0:00:32]}  Rh6 {[%clk 0:00:29]} 43. Bxd6 {[%clk 0:00:28]}  Rxd6 {[%clk 0:00:13]} 44. Ra8 {[%clk 0:00:27]}  Rh6 {[%clk 0:00:13]} 45. h8=Q {[%clk 0:00:27]}  Rxh8 {[%clk 0:00:13]} 46. Rxh8 {[%clk 0:00:28]}  e4 {[%clk 0:00:11]} 47. dxe4 {[%clk 0:00:23]}  c4 {[%clk 0:00:11]} 48. Ra8 {[%clk 0:00:17]}  Kb4 {[%clk 0:00:11]} 49. e5 {[%clk 0:00:17]}  c3 {[%clk 0:00:11]} 50. e6 {[%clk 0:00:18]}  c2 {[%clk 0:00:12]} 51. Rc8 {[%clk 0:00:02]}  a2 {[%clk 0:00:12]} 52. Rxc2 {[%clk 0:00:01]}  a1=Q+ {[%clk 0:00:12]} 53. Kf2 {[%clk 0:00:02]}  Qd4+ {[%clk 0:00:13]} 54. Ke1 {[%clk 0:00:01]}  Qg1+ {[%clk 0:00:12]} 55. Kd2 {[%clk 0:00:02]}  Qxg2+ {[%clk 0:00:13]} 56. Kc1 {[%clk 0:00:03]}  Qg5+ {[%clk 0:00:13]} 57. Kb1 {[%clk 0:00:02]}  Qe5 {[%clk 0:00:12]} 58. Rb2+ {[%clk 0:00:01]}  Ka3 {[%clk 0:00:12]} 59. Ra2+ {[%clk 0:00:01]}  Kb3 {[%clk 0:00:13]} 60. Rd2 {[%clk 0:00:01]}  Qe1+ {[%clk 0:00:12]} 0-1


[Site "https://www.chess.com"]

[Event "Titled Tuesday Blitz April 4 Early 2023"]
[White "Ibadov, Dashgyn"]
[Black "Kowalczyk, Pawel"]
[WhiteFideId "24107514"]
[BlackFideId "1130641"]
[WhiteElo "2208"]
[BlackElo "2324"]
[Result "0-1"]
[Round "11"]
[TimeControl "180+2"]
[Date "2023.04.04"]
[WhiteClock "0:00:04"]
[BlackClock "0:01:51"]

1. e4 {[%clk 0:03:00]}  c5 {[%clk 0:02:59]} 2. Nf3 {[%clk 0:03:00]}  e6 {[%clk 0:02:59]} 3. d4 {[%clk 0:02:59]}  cxd4 {[%clk 0:02:59]} 4. Nxd4 {[%clk 0:03:00]}  Qb6 {[%clk 0:02:59]} 5. Nc3 {[%clk 0:02:45]}  Bc5 {[%clk 0:02:58]} 6. Na4 {[%clk 0:02:38]}  Qa5+ {[%clk 0:02:57]} 7. c3 {[%clk 0:02:37]}  Bxd4 {[%clk 0:02:57]} 8. Qxd4 {[%clk 0:02:34]}  Nf6 {[%clk 0:02:57]} 9. Nc5 {[%clk 0:02:18]}  O-O {[%clk 0:02:57]} 10. Be2 {[%clk 0:02:00]}  Nc6 {[%clk 0:02:55]} 11. Qe3 {[%clk 0:02:00]}  d5 {[%clk 0:02:55]} 12. O-O {[%clk 0:01:49]}  e5 {[%clk 0:02:49]} 13. b4 {[%clk 0:01:44]}  Qc7 {[%clk 0:02:49]} 14. exd5 {[%clk 0:01:41]}  Nxd5 {[%clk 0:02:48]} 15. Qg3 {[%clk 0:01:41]}  Bf5 {[%clk 0:02:45]} 16. a3 {[%clk 0:01:27]}  Rad8 {[%clk 0:02:43]} 17. c4 {[%clk 0:01:24]}  Nd4 {[%clk 0:02:34]} 18. Bd1 {[%clk 0:01:14]}  Nf4 {[%clk 0:02:33]} 19. Bxf4 {[%clk 0:00:44]}  exf4 {[%clk 0:02:34]} 20. Qc3 {[%clk 0:00:45]}  b6 {[%clk 0:02:29]} 21. Nb3 {[%clk 0:00:44]}  Nxb3 {[%clk 0:02:23]} 22. Bxb3 {[%clk 0:00:45]}  Rd3 {[%clk 0:02:21]} 23. Qb2 {[%clk 0:00:45]}  f3 {[%clk 0:02:21]} 24. Rfd1 {[%clk 0:00:36]}  fxg2 {[%clk 0:02:17]} 25. Rxd3 {[%clk 0:00:27]}  Bxd3 {[%clk 0:02:18]} 26. Qc3 {[%clk 0:00:28]}  Bf1 {[%clk 0:02:15]} 27. c5 {[%clk 0:00:25]}  bxc5 {[%clk 0:02:06]} 28. bxc5 {[%clk 0:00:24]}  Bb5 {[%clk 0:01:59]} 29. Re1 {[%clk 0:00:16]}  Bc6 {[%clk 0:01:58]} 30. Qc4 {[%clk 0:00:13]}  g6 {[%clk 0:01:55]} 31. Rd1 {[%clk 0:00:08]}  Re8 {[%clk 0:01:54]} 32. Qd4 {[%clk 0:00:07]}  Qe5 {[%clk 0:01:53]} 33. Qc4 {[%clk 0:00:04]}  Qe1+ {[%clk 0:01:51]} 0-1


[Site "https://www.chess.com"]

[Event "Titled Tuesday Blitz April 4 Early 2023"]
[White "Eynullayev, Atilla"]
[Black "De La Colina, Nicolas"]
[WhiteFideId "13413570"]
[BlackFideId "30946921"]
[WhiteElo "2181"]
[BlackElo "2046"]
[Result "1-0"]
[Round "11"]
[TimeControl "180+2"]
[Date "2023.04.04"]
[WhiteClock "0:00:08"]
[BlackClock "0:00:12"]

1. d4 {[%clk 0:03:00]}  Nf6 {[%clk 0:02:59]} 2. c4 {[%clk 0:02:59]}  e6 {[%clk 0:02:59]} 3. Nc3 {[%clk 0:02:59]}  c5 {[%clk 0:02:56]} 4. d5 {[%clk 0:02:59]}  exd5 {[%clk 0:02:56]} 5. cxd5 {[%clk 0:03:00]}  d6 {[%clk 0:02:57]} 6. e4 {[%clk 0:03:00]}  g6 {[%clk 0:02:58]} 7. f4 {[%clk 0:03:01]}  Bg7 {[%clk 0:02:59]} 8. Bb5+ {[%clk 0:03:02]}  Nfd7 {[%clk 0:02:59]} 9. Bd3 {[%clk 0:03:01]}  Na6 {[%clk 0:02:55]} 10. Nf3 {[%clk 0:03:01]}  O-O {[%clk 0:02:54]} 11. O-O {[%clk 0:03:01]}  Re8 {[%clk 0:02:49]} 12. Kh1 {[%clk 0:03:00]}  Rb8 {[%clk 0:02:36]} 13. a3 {[%clk 0:02:40]}  Nc7 {[%clk 0:02:32]} 14. f5 {[%clk 0:02:36]}  Ne5 {[%clk 0:02:26]} 15. Bg5 {[%clk 0:02:36]}  Bf6 {[%clk 0:02:19]} 16. Bxf6 {[%clk 0:01:54]}  Qxf6 {[%clk 0:02:20]} 17. Nxe5 {[%clk 0:01:54]}  Qxe5 {[%clk 0:02:19]} 18. Qd2 {[%clk 0:01:51]}  Qg7 {[%clk 0:01:57]} 19. f6 {[%clk 0:01:47]}  Qf8 {[%clk 0:01:55]} 20. a4 {[%clk 0:01:33]}  Bd7 {[%clk 0:01:47]} 21. Rfc1 {[%clk 0:01:08]}  a6 {[%clk 0:01:40]} 22. a5 {[%clk 0:01:07]}  b5 {[%clk 0:01:36]} 23. axb6 {[%clk 0:01:07]}  Rxb6 {[%clk 0:01:35]} 24. Rab1 {[%clk 0:00:53]}  Reb8 {[%clk 0:01:31]} 25. Qf4 {[%clk 0:00:46]}  Qd8 {[%clk 0:01:23]} 26. Rc2 {[%clk 0:00:35]}  Ne8 {[%clk 0:01:11]} 27. Rf2 {[%clk 0:00:35]}  Rb3 {[%clk 0:01:12]} 28. e5 {[%clk 0:00:25]}  dxe5 {[%clk 0:00:56]} 29. Qxe5 {[%clk 0:00:25]}  R3b6 {[%clk 0:00:47]} 30. Rbf1 {[%clk 0:00:22]}  Rxb2 {[%clk 0:00:28]} 31. Rxb2 {[%clk 0:00:21]}  Rxb2 {[%clk 0:00:29]} 32. Ne4 {[%clk 0:00:22]}  Rb6 {[%clk 0:00:29]} 33. Bc4 {[%clk 0:00:05]}  Bb5 {[%clk 0:00:29]} 34. Bxb5 {[%clk 0:00:06]}  axb5 {[%clk 0:00:27]} 35. Qe7 {[%clk 0:00:06]}  Qxe7 {[%clk 0:00:15]} 36. fxe7 {[%clk 0:00:07]}  f5 {[%clk 0:00:14]} 37. d6 {[%clk 0:00:08]}  Rxd6 {[%clk 0:00:09]} 38. Nxd6 {[%clk 0:00:08]}  Nxd6 {[%clk 0:00:10]} 39. Rd1 {[%clk 0:00:05]}  Ne8 {[%clk 0:00:09]} 40. Rd5 {[%clk 0:00:04]}  Kf7 {[%clk 0:00:08]} 41. Rxc5 {[%clk 0:00:05]}  Nd6 {[%clk 0:00:05]} 42. Rc7 {[%clk 0:00:05]}  Ne8 {[%clk 0:00:04]} 43. Rb7 {[%clk 0:00:05]}  Nd6 {[%clk 0:00:04]} 44. Ra7 {[%clk 0:00:03]}  Nc8 {[%clk 0:00:01]} 45. Rc7 {[%clk 0:00:04]}  Nxe7 {[%clk 0:00:01]} 46. Rb7 {[%clk 0:00:04]}  Kf6 {[%clk 0:00:01]} 47. Rxb5 {[%clk 0:00:04]}  Kf7 {[%clk 0:00:02]} 48. Kg1 {[%clk 0:00:05]}  Kf6 {[%clk 0:00:03]} 49. Rb7 {[%clk 0:00:05]}  Kf7 {[%clk 0:00:04]} 50. Kf2 {[%clk 0:00:06]}  Kf6 {[%clk 0:00:05]} 51. Kg3 {[%clk 0:00:06]}  Kf7 {[%clk 0:00:06]} 52. h4 {[%clk 0:00:07]}  Kf6 {[%clk 0:00:06]} 53. Kf3 {[%clk 0:00:07]}  h6 {[%clk 0:00:07]} 54. Rb6+ {[%clk 0:00:07]}  Kf7 {[%clk 0:00:08]} 55. Rd6 {[%clk 0:00:07]}  Kg7 {[%clk 0:00:08]} 56. Kf4 {[%clk 0:00:07]}  Kf7 {[%clk 0:00:09]} 57. Ke5 {[%clk 0:00:07]}  Ng8 {[%clk 0:00:04]} 58. Rd7+ {[%clk 0:00:07]}  Ke8 {[%clk 0:00:04]} 59. Rh7 {[%clk 0:00:06]}  Kf8 {[%clk 0:00:04]} 60. Ke6 {[%clk 0:00:06]}  Ke8 {[%clk 0:00:05]} 61. Rg7 {[%clk 0:00:04]}  Kf8 {[%clk 0:00:06]} 62. Rxg6 {[%clk 0:00:05]}  h5 {[%clk 0:00:07]} 63. Rg5 {[%clk 0:00:05]}  Ke8 {[%clk 0:00:07]} 64. Rxf5 {[%clk 0:00:05]}  Ne7 {[%clk 0:00:07]} 65. Rxh5 {[%clk 0:00:06]}  Kf8 {[%clk 0:00:08]} 66. Rh8+ {[%clk 0:00:06]}  Ng8 {[%clk 0:00:09]} 67. Rxg8+ {[%clk 0:00:06]}  Kxg8 {[%clk 0:00:09]} 68. Kf6 {[%clk 0:00:07]}  Kh7 {[%clk 0:00:10]} 69. g4 {[%clk 0:00:07]}  Kg8 {[%clk 0:00:11]} 70. Kg6 {[%clk 0:00:08]}  Kh8 {[%clk 0:00:12]} 1-0


[Site "https://www.chess.com"]